bitfinex-derivatives/quotes_SOLF0:USTF0_20260105
["timestamp","ask_amount","ask_price","bid_price","bid_amount"]
[1767635561268,0.29657206,136.11,136.04,0.3309337]
[1767635561269,6.91047206,136.11,136.04,0.3309337]
[1767635561472,93.77047206,136.11,136.04,0.3309337]
[1767635561778,6.6144,136.1,136.04,0.3309337]
[1767635562572,87.15657206,136.11,136.04,0.3309337]
[1767635563280,93.77047206,136.11,136.04,6.9482337]
[1767635564172,6.91047206,136.11,136.04,6.9482337]
[1767635565680,6.91167206,136.09,136.02,6.9487337]
[1767635566381,6.6151,136.09,136.03,0.3309337]
[1767635566676,86.86,136.1,136.04,0.3309337]
[1767635567279,86.86,136.1,136.05,6.6168]
[1767635567480,2.14536868,136.12,136.05,6.9477337]
[1767635567683,86.86,136.11,136.05,6.9477337]
[1767635568586,0.29657206,136.09,136.02,0.3309337]
[1767635569184,0.29657206,136.12,136.04,0.3309337]
[1767635569395,87.13657206,136.12,136.04,0.3309337]
[1767635569590,88.98536868,136.12,136.04,0.3309337]
[1767635570489,87.13657206,136.12,136.06,6.6161]
[1767635573290,87.13657206,136.12,136.04,2.17973032]
[1767635573890,0.29657206,136.12,136.04,2.17973032]
[1767635574089,87.13657206,136.12,136.04,2.17973032]
[1767635574285,87.13657206,136.12,136.05,6.6164]
[1767635574488,0.29602943,136.1,136.04,0.3309337]
[1767635575093,8.75972605,136.09,136.02,0.33498604]
[1767635575293,0.29602943,136.08,136.01,6.76583884]
[1767635575593,0.29602943,136.08,136.01,0.33498604]
[1767635576186,6.91142943,136.08,136.01,0.33498604]
[1767635576595,6.91142943,136.08,136.01,7.10082488]
[1767635576787,6.91142943,136.08,136.01,13.71962488]
[1767635578891,6.91142943,136.08,135.98,102.9792]
[1767635578892,0.29602943,136.04,135.98,9.02111845]
[1767635579099,2.14478721,136.03,135.95,9.35610449]
[1767635579301,2.14478721,136.03,135.95,0.33498604]
[1767635579793,8.76268721,136.03,135.96,6.6212]
[1767635579998,2.14478721,136.03,135.95,0.33498604]
[1767635580690,0.29599059,136.03,135.96,0.33498604]
[1767635580890,0.29599059,136.03,135.96,2.18378266]
[1767635581494,0.29599059,136.03,135.96,0.33498604]
[1767635581894,1.84879662,136.05,135.97,0.32548609]
[1767635582396,87.15571371,136.06,135.97,0.32548609]
[1767635582604,0.29571371,136.06,135.99,6.94498609]
[1767635582798,0.29571371,136.06,135.99,0.32548609]
[1767635583095,0.29571371,136.08,135.99,0.32548609]
[1767635584602,6.91121371,136.08,136.01,6.6187]
[1767635585899,6.91121371,136.08,136.01,6.94418609]
[1767635585900,0.29571371,136.08,136.01,6.94418609]
[1767635586100,6.91051371,136.1,136.03,6.6178]
[1767635586402,6.91051371,136.1,136.01,0.32548609]
[1767635586602,0.29571371,136.09,136.01,0.32548609]
[1767635587601,0.29571371,136.09,136.02,6.94368609]
[1767635587807,0.29571371,136.09,136.02,0.32548609]
[1767635589417,0.29571371,136.12,136.04,6.94278609]
[1767635589601,2.88476644,136.17,136.05,0.32548609]
[1767635589806,93.76721371,136.16,136.08,6.94078609]
[1767635590203,0.29571371,136.16,136.08,6.94078609]
[1767635590505,87.15571371,136.17,136.1,0.32548609]
[1767635590706,0.29571371,136.16,136.07,0.32548609]
[1767635591606,6.90731371,136.16,136.08,0.32548609]
[1767635592806,0.29571371,136.19,136.09,0.32548609]
[1767635593108,1.27861263,136.23,136.1,0.32548609]
[1767635593109,0.29571371,136.22,136.1,0.32548609]
[1767635593309,90.02048015,136.21,136.1,0.32548609]
[1767635593513,96.62978015,136.21,136.12,6.93878609]
[1767635593999,6.6097,136.2,136.12,6.93878609]
[1767635594513,0.29571371,136.19,136.11,0.32548609]
[1767635594903,6.90581371,136.19,136.11,0.32548609]
[1767635595512,6.90581371,136.19,136.12,6.6133]
[1767635595710,6.90581371,136.19,136.11,0.32548609]
[1767635596713,6.90581371,136.19,136.11,6.93908609]
[1767635597408,6.90641371,136.18,136.11,0.32548609]
[1767635598314,0.29571371,136.17,136.08,6.94048609]
[1767635599212,0.29571371,136.15,136.08,6.94048609]
[1767635599416,0.29571371,136.15,136.08,6.615]
[1767635600007,0.29571371,136.14,136.06,6.616]
[1767635600219,0.29571371,136.14,136.05,0.32548609]
[1767635600716,0.29571371,136.14,136.08,6.6152]
[1767635601816,93.4316,136.16,136.08,6.94068609]
[1767635602113,0.29571371,136.15,136.08,6.94068609]
[1767635604616,6.6116,136.16,136.08,6.6152]
[1767635604818,87.11571371,136.17,136.09,0.32548609]
[1767635605019,0.29571371,136.17,136.09,6.94028609]
[1767635605521,6.90681371,136.17,136.09,6.94028609]
[1767635607417,6.6115,136.16,136.09,0.32548609]
[1767635607622,6.90721371,136.16,136.09,0.32548609]
[1767635608027,0.29571371,136.15,136.06,0.32548609]
[1767635608517,0.29571371,136.15,136.07,6.6158]
[1767635608717,0.29571371,136.17,136.08,0.32548609]
[1767635609225,6.6116,136.16,136.09,6.6148]
[1767635609826,0.29571371,136.17,136.08,0.32548609]
[1767635610122,6.90771371,136.15,136.08,0.32548609]
[1767635612431,6.6125,136.14,136.08,0.32548609]
[1767635613123,6.90782356,136.14,136.07,6.6154]
[1767635613833,0.29532356,136.14,136.06,0.31967134]
[1767635614839,87.11532356,136.14,136.06,0.31967134]
[1767635615144,6.6135,136.12,136.06,0.31967134]
[1767635616439,0.29532356,136.13,136.06,6.93597134]
[1767635617638,6.90892356,136.12,136.05,6.6164]
[1767635617945,0.29532356,136.11,136.05,6.6164]
[1767635618137,0.29532356,136.11,136.03,6.93717134]
[1767635620648,6.90922356,136.11,136.03,6.93717134]
[1767635622144,6.90922356,136.11,136.04,6.6173]
[1767635622344,6.90922356,136.11,136.04,6.93697134]
[1767635622950,0.29532356,136.11,136.05,6.6168]
[1767635623445,0.29532356,136.11,136.04,0.31967134]
[1767635623852,0.29532356,136.14,136.04,0.31967134]
[1767635624041,87.11532356,136.14,136.04,0.31967134]
[1767635624241,6.6131,136.13,136.05,6.93627134]
[1767635624438,0.29532356,136.12,136.03,0.31967134]
[1767635625343,0.29532356,136.12,136.04,6.93687134]
[1767635625943,0.29532356,136.12,136.0,0.31967134]
[1767635625944,0.29532356,136.09,136.0,0.31967134]
[1767635626650,6.91092356,136.08,136.0,6.93877134]
[1767635626836,6.91092356,136.08,136.0,0.31967134]
[1767635627247,0.29532356,136.08,136.02,6.6181]
[1767635627448,0.29532356,136.11,136.0,0.31967134]
[1767635628246,6.6149,136.1,136.03,6.6177]
[1767635628451,6.91022356,136.1,136.03,6.6177]
[1767635629249,0.29532356,136.1,136.03,6.93737134]
[1767635629450,0.29532356,136.1,136.04,6.6172]
[1767635632855,6.90972356,136.1,136.04,6.6172]
[1767635633047,6.90972356,136.1,136.03,0.31967134]
[1767635637558,6.6149,136.09,136.03,0.31967134]
[1767635638155,6.6149,136.09,136.03,6.93747134]
[1767635639847,0.29538499,136.14,136.06,0.34510607]
[1767635640061,0.29538499,136.14,136.07,0.34510607]
[1767635640460,6.90788499,136.14,136.07,6.96080607]
[1767635642557,0.2953998,136.16,136.08,0.33266728]
[1767635642761,0.2953998,136.19,136.11,0.33266728]
[1767635642957,0.2953998,136.19,136.11,7.10263213]
[1767635643159,0.2953998,136.19,136.12,2.17665131]
[1767635643356,1.84398403,136.2,136.12,2.17665131]
[1767635643357,0.2953998,136.23,136.12,0.33266728]
[1767635643557,102.7862,136.24,136.13,2.17665131]
[1767635643558,0.2953998,136.21,136.13,2.17665131]
[1767635644456,0.2953998,136.17,136.11,6.76996485]
[1767635644662,0.2953998,136.15,136.07,111.85751616]
[1767635644867,1.84398403,136.18,136.1,0.33266728]
[1767635645159,0.2953998,136.19,136.11,0.33266728]
[1767635645359,0.2953998,136.19,136.12,0.33266728]
[1767635645965,1.84398403,136.21,136.14,6.94506728]
[1767635646159,2.13938383,136.22,136.14,6.94506728]
[1767635646869,6.9032998,136.24,136.15,2.17665131]
[1767635647562,1.84398403,136.28,136.2,0.33266728]
[1767635647762,397.7203,136.33,136.21,2.17665131]
[1767635647763,1.84398403,136.29,136.21,2.17665131]
[1767635648064,6.6049,136.3,136.21,8.78555131]
[1767635648262,88.66398403,136.32,136.23,1.84398403]
[1767635648457,86.82,136.32,136.23,1.84398403]
[1767635648659,1.84398403,136.29,136.21,0.33266728]
[1767635648857,102.7438,136.3,136.18,0.33266728]
[1767635649062,1.84398403,136.26,136.18,0.33266728]
[1767635649260,8.45078403,136.26,136.18,0.33266728]
[1767635649567,1.84398403,136.29,136.2,0.33266728]
[1767635649866,1.84398403,136.29,136.2,2.17665131]
[1767635650058,1.84398403,136.29,136.2,0.33266728]
[1767635650667,1.84398403,136.29,136.19,1.84398403]
[1767635650668,1.84398403,136.29,136.21,2.17665131]
[1767635650853,6.6055,136.29,136.22,2.17665131]
[1767635651261,189.5285,136.32,136.22,0.33266728]
[1767635651262,6.6049,136.3,136.22,0.33266728]
[1767635651458,8.44888403,136.3,136.22,2.17665131]
[1767635651768,1.84398403,136.3,136.22,2.17665131]
[1767635652066,1.84398403,136.28,136.2,1.84398403]
[1767635652263,1.84398403,136.26,136.19,0.33266728]
[1767635652668,102.7368,136.31,136.2,2.17665131]
[1767635652860,1.84398403,136.31,136.22,2.17665131]
[1767635653263,6.6049,136.3,136.22,2.17665131]
[1767635653464,88.62398403,136.32,136.23,0.33266728]
[1767635654165,1.84398403,136.3,136.23,0.33266728]
[1767635654370,1.84398403,136.3,136.21,2.17665131]
[1767635654976,1.84398403,136.26,136.18,0.33266728]
[1767635655168,1.84398403,136.27,136.19,1.84398403]
[1767635655363,1.84398403,136.27,136.19,0.33266728]
[1767635655565,191.39008403,136.27,136.18,1.84398403]
[1767635656264,6.6075,136.25,136.18,1.84398403]
[1767635656465,6.6075,136.25,136.17,0.33266728]
[1767635657866,6.6065,136.27,136.17,0.33266728]
[1767635658065,86.76,136.3,136.2,0.33266728]
[1767635659075,6.6064,136.27,136.2,0.33266728]
[1767635659270,102.7606,136.28,136.17,0.33266728]
[1767635659571,6.6074,136.25,136.17,0.33266728]
[1767635660680,6.6074,136.25,136.17,6.94346728]
[1767635660971,6.6074,136.25,136.17,0.33266728]
[1767635661175,6.6082,136.23,136.17,0.33266728]
[1767635661678,102.7894,136.24,136.14,0.33266728]
[1767635661863,6.6096,136.2,136.11,0.33266728]
[1767635662559,102.7946,136.23,136.14,0.33266728]
[1767635663367,86.76,136.23,136.14,0.33266728]
[1767635664165,93.3679,136.24,136.14,0.33266728]
[1767635664374,86.76,136.24,136.14,0.33266728]
[1767635664768,189.5482,136.24,136.14,6.94476728]
[1767635665369,86.76,136.24,136.15,0.33266728]
[1767635665564,86.76,136.25,136.15,0.33266728]
[1767635665768,93.3675,136.25,136.17,6.6108]
[1767635665964,86.76,136.27,136.16,0.33266728]
[1767635667676,4.52056056,136.31,136.18,0.33266728]
[1767635667873,86.76,136.3,136.18,0.33266728]
[1767635668077,6.6057,136.28,136.21,6.609]
[1767635669070,6.6057,136.28,136.19,6.6096]
[1767635669380,6.6057,136.28,136.18,0.33266728]
[1767635669571,102.7486,136.29,136.18,6.6101]
[1767635669772,107.26916056,136.29,136.18,6.6101]
[1767635670166,102.7486,136.29,136.17,0.33266728]
[1767635670370,189.5036,136.3,136.17,0.33266728]
[1767635670664,86.76,136.29,136.18,0.33266728]
[1767635671677,6.6059,136.28,136.21,6.6089]
[1767635672282,6.6063,136.27,136.19,6.61]
[1767635673276,6.6063,136.27,136.18,0.33266728]
[1767635674582,6.6066,136.26,136.18,6.94316728]
[1767635675080,86.76,136.28,136.18,6.94306728]
[1767635675081,6.6065,136.27,136.18,6.94306728]
[1767635675378,102.7109,136.34,136.22,0.32134991]
[1767635675584,86.76,136.33,136.22,0.32134991]
[1767635675773,102.7109,136.34,136.22,0.32134991]
[1767635675968,4.52056056,136.35,136.22,0.32134991]
[1767635675969,6.6044,136.31,136.22,0.32134991]
[1767635676173,86.76,136.33,136.22,0.32134991]
[1767635676371,86.76,136.33,136.24,0.32134991]
[1767635676785,102.6934,136.37,136.24,0.32134991]
[1767635676984,93.3421,136.36,136.26,6.92774991]
[1767635677287,189.4021,136.41,136.28,0.32134991]
[1767635677471,189.4021,136.41,136.31,0.32134991]
[1767635677472,102.6621,136.41,136.31,0.32134991]
[1767635677673,102.6821,136.38,136.28,0.32134991]
[1767635677883,102.6821,136.38,136.23,86.74]
[1767635677884,102.7031,136.35,136.23,86.74]
[1767635678080,102.7003,136.36,136.25,0.32134991]
[1767635678081,6.6032,136.34,136.25,0.32134991]
[1767635678479,102.7218,136.33,136.22,0.32134991]
[1767635678681,102.7218,136.33,136.19,0.32134991]
[1767635678883,0.58670471,136.41,136.31,0.32134991]
[1767635679086,102.606,136.48,136.34,102.7067]
[1767635679275,102.606,136.48,136.36,102.6921]
[1767635679276,0.31223498,136.48,136.36,102.6921]
[1767635679474,0.31223498,136.48,136.37,4.52056056]
[1767635679677,0.31223498,136.48,136.34,104.1665]
[1767635679889,0.31223498,136.48,136.34,1.46]
[1767635680185,0.31223498,136.48,136.36,4.52056056]
[1767635680380,0.31223498,136.45,136.35,4.52056056]
[1767635680581,0.31223498,136.45,136.32,86.74]
[1767635680774,0.31223498,136.43,136.32,86.74]
[1767635681175,0.31223498,136.46,136.34,4.52056056]
[1767635681391,0.31223498,136.45,136.34,4.52056056]
[1767635682297,102.93653498,136.46,136.35,1.46]
[1767635682596,102.94233498,136.45,136.36,86.7]
[1767635682890,102.94233498,136.45,136.35,86.7]
[1767635683275,102.6151,136.47,136.35,86.7]
[1767635683276,109.2118,136.47,136.35,91.22056056]
[1767635683476,0.31223498,136.45,136.35,4.52056056]
[1767635683677,102.6377,136.44,136.35,4.52056056]
[1767635683887,102.6377,136.44,136.34,86.7]
[1767635684280,109.54253498,136.45,136.34,86.7]
[1767635684476,0.31223498,136.45,136.34,86.7]
[1767635684683,102.94273498,136.45,136.34,86.7]
[1767635684891,101.89273498,136.45,136.34,86.7]
[1767635685285,102.6377,136.44,136.34,86.7]
[1767635685697,6.5979,136.44,136.34,86.7]
[1767635686196,109.2339,136.44,136.34,86.7]
[1767635686585,189.3032,136.46,136.34,86.7]
[1767635686785,189.61543498,136.46,136.34,86.7]
[1767635686981,102.93543498,136.46,136.34,86.7]
[1767635687185,109.53233498,136.46,136.34,86.7]
[1767635687389,102.94353498,136.45,136.34,86.7]
[1767635687595,0.31223498,136.44,136.34,86.7]
[1767635688692,102.97013498,136.41,136.31,86.66]
[1767635689085,6.6003,136.4,136.31,86.66]
[1767635689483,102.95043498,136.44,136.31,88.12]
[1767635689685,109.55413498,136.43,136.31,86.66]
[1767635690090,102.95533498,136.43,136.31,86.66]
[1767635690889,102.95533498,136.43,136.31,93.2638]
[1767635690890,6.5993,136.42,136.31,93.2638]
[1767635691097,102.93733498,136.46,136.35,4.52056056]
[1767635691285,102.93733498,136.46,136.31,190.8495]
[1767635691286,102.94003498,136.45,136.36,86.66]
[1767635691787,109.2334,136.44,136.36,86.66]
[1767635691988,102.6354,136.44,136.36,86.66]
[1767635692193,6.5988,136.43,136.36,86.66]
[1767635692702,6.5988,136.43,136.33,4.52056056]
[1767635692895,6.90983498,136.45,136.33,11.12336056]
[1767635693202,86.95223498,136.48,136.36,4.52056056]
[1767635693404,86.95223498,136.48,136.37,86.64]
[1767635693896,0.34768788,136.47,136.37,86.64]
[1767635694492,0.34768788,136.46,136.36,4.52056056]
[1767635694688,0.34768788,136.45,136.33,91.16056056]
[1767635695288,0.34768788,136.44,136.33,86.64]
[1767635695490,0.34768788,136.4,136.29,97.76566056]
[1767635696492,0.34768788,136.39,136.29,91.16056056]
[1767635696997,6.94828788,136.39,136.29,91.16056056]
[1767635698392,6.94828788,136.39,136.29,97.76556056]
[1767635699398,6.94828788,136.39,136.3,6.6045]
[1767635699606,0.34768788,136.36,136.29,86.64]
[1767635700195,0.34768788,136.36,136.27,6.606]
[1767635700695,6.91789577,136.39,136.3,6.6046]
[1767635700891,0.31719577,136.39,136.26,107.28726056]
[1767635701198,0.3456437,136.37,136.26,4.52056056]
[1767635701695,0.3456437,136.36,136.28,6.6055]
[1767635701903,0.3456437,136.39,136.27,102.7585]
[1767635702100,0.3456437,136.39,136.26,107.28786056]
[1767635702300,6.6009,136.38,136.29,6.6051]
[1767635702700,6.6009,136.38,136.26,107.28786056]
[1767635702701,0.3456437,136.39,136.28,102.755]
[1767635702903,6.9460437,136.39,136.3,6.6042]
[1767635704198,6.6009,136.38,136.3,6.6042]
[1767635704404,0.3456437,136.39,136.31,6.6041]
[1767635704605,0.3456437,136.39,136.27,124.8193]
[1767635704805,0.3456437,136.39,136.28,102.7553]
[1767635705305,6.9465437,136.38,136.3,6.6046]
[1767635705505,0.3456437,136.37,136.25,189.414]
[1767635705907,0.3456437,136.37,136.29,6.605]
[1767635706108,0.3456437,136.37,136.27,102.7599]
[1767635706293,0.3456437,136.37,136.28,102.7547]
[1767635706501,0.3456437,136.37,136.3,6.6045]
[1767635706899,0.3456437,136.37,136.27,102.7599]
[1767635707908,0.3456437,136.37,136.28,6.6055]
[1767635708106,0.3456437,136.37,136.25,189.414]
[1767635708307,0.3456437,136.35,136.23,102.7899]
[1767635708509,0.3456437,136.35,136.23,86.66]
[1767635709608,6.6034,136.33,136.25,6.6069]
[1767635709795,0.3456437,136.35,136.25,6.6069]
[1767635710706,6.6039,136.32,136.25,6.6069]
[1767635710904,0.3456437,136.35,136.25,6.6069]
[1767635711106,6.9487437,136.34,136.26,6.6064]
[1767635711503,0.3456437,136.34,136.23,86.66]
[1767635712205,6.9486437,136.34,136.25,6.6068]
[1767635712410,0.3456437,136.33,136.23,86.66]
[1767635712800,0.3456437,136.33,136.19,211.537]
[1767635713407,0.3456437,136.31,136.22,6.6083]
[1767635716312,0.3456437,136.3,136.22,6.6083]
[1767635716509,0.3456437,136.3,136.19,211.537]
[1767635716704,0.3456437,136.33,136.21,102.803]
[1767635717310,0.3456437,136.33,136.25,6.6068]
[1767635717511,0.3456437,136.33,136.22,102.7982]
[1767635717908,0.3456437,136.33,136.24,6.6072]
[1767635717909,6.9491437,136.33,136.24,6.6072]
[1767635718308,0.3456437,136.33,136.22,86.68]
[1767635719111,0.3456437,136.31,136.2,6.6091]
[1767635719417,0.3456437,136.3,136.2,6.6091]
[1767635719905,6.6057,136.28,136.2,6.6091]
[1767635720109,0.3456437,136.28,136.17,34.73608443]
[1767635720309,0.3456437,136.28,136.17,121.41608443]
[1767635720710,0.3456437,136.28,136.2,6.6092]
[1767635720916,0.3456437,136.31,136.2,102.8151]
[1767635721713,0.3456437,136.34,136.22,102.7966]
[1767635721910,0.3456437,136.34,136.22,189.4766]
[1767635722320,6.6033,136.33,136.25,6.6068]
[1767635722509,6.9489437,136.33,136.25,6.6068]
[1767635722713,0.3456437,136.33,136.23,102.7927]
[1767635722914,0.3456437,136.33,136.26,6.6065]
[1767635723117,0.3456437,136.33,136.21,86.7]
[1767635723418,0.3456437,136.42,136.3,109.3428]
[1767635723609,0.3456437,136.42,136.3,196.0442]
[1767635723814,0.3456437,136.42,136.31,102.7295]
[1767635724011,86.7,136.45,136.33,102.7145]
[1767635724217,0.3456437,136.44,136.3,189.4372]
[1767635724419,0.3456437,136.42,136.3,86.7]
[1767635724718,0.3456437,136.41,136.3,86.7]
[1767635725019,0.3456437,136.41,136.28,6.6053]
[1767635725020,0.3456437,136.39,136.26,189.4464]
[1767635725224,0.3456437,136.38,136.26,86.68]
[1767635725409,0.3456437,136.36,136.26,86.68]
[1767635725607,0.3456437,136.36,136.23,189.4698]
[1767635726227,0.3456437,136.36,136.23,93.2878]
[1767635726418,0.3456437,136.34,136.21,102.8043]
[1767635726621,102.7033,136.35,136.21,102.8043]
[1767635726622,0.3456437,136.32,136.21,102.8043]
[1767635727312,102.6908,136.37,136.23,102.7878]
[1767635727514,0.3456437,136.36,136.23,102.7878]
[1767635727924,0.3456437,136.36,136.24,102.7822]
[1767635728127,87.0256437,136.36,136.24,102.7822]
[1767635728317,87.0256437,136.36,136.23,102.7878]
[1767635728318,0.3456437,136.35,136.23,102.7878]
[1767635728719,0.3456437,136.35,136.22,102.7951]
[1767635729626,87.0256437,136.38,136.26,6.6066]
[1767635730129,0.3456437,136.37,136.26,109.3749]
[1767635730326,0.3456437,136.37,136.28,102.755]
[1767635731426,0.3456437,136.37,136.29,6.6048]
[1767635731728,87.01153084,136.4,136.29,6.6048]
[1767635732328,87.01153084,136.4,136.31,6.604]
[1767635734025,87.01153084,136.43,136.32,102.7197]
[1767635734434,0.33153084,136.42,136.32,102.7197]
[1767635734929,0.33153084,136.42,136.31,102.7291]
[1767635735726,0.33153084,136.42,136.35,6.6022]
[1767635736026,0.33153084,136.42,136.32,102.7189]
[1767635736824,0.33153084,136.42,136.33,6.6029]
[1767635737025,0.33153084,136.39,136.26,6.69183324]
[1767635737229,0.33153084,136.39,136.26,86.68]
[1767635737432,6.93053084,136.42,136.27,102.7604]
[1767635737634,0.33153084,136.41,136.28,6.69183324]
[1767635738235,6.6002,136.4,136.3,6.6045]
[1767635738425,6.6002,136.4,136.3,93.2845]
[1767635738821,6.6005,136.39,136.3,93.2845]
[1767635739224,0.33153084,136.4,136.3,86.68]
[1767635739428,103.01363084,136.38,136.27,6.69183324]
[1767635739730,103.02503084,136.37,136.28,86.66]
[1767635740624,103.02903084,136.36,136.28,86.66]
[1767635741233,6.6026,136.35,136.26,6.6065]
[1767635741424,6.6026,136.35,136.27,86.66]
[1767635742228,6.6017,136.37,136.28,6.6055]
[1767635742429,0.33153084,136.39,136.27,189.4213]
[1767635742630,0.33153084,136.39,136.27,196.11313324]
[1767635742828,6.6014,136.37,136.27,196.11313324]
[1767635743035,6.6014,136.37,136.27,93.35183324]
[1767635743332,0.33153084,136.39,136.27,196.11183324]
[1767635743830,6.93223084,136.39,136.28,109.44683324]
[1767635744031,0.33153084,136.39,136.28,109.44683324]
[1767635744228,0.33153084,136.39,136.28,6.69183324]
[1767635744530,6.93213084,136.39,136.31,6.6041]
[1767635744735,6.93213084,136.39,136.28,6.69183324]
[1767635745235,6.93213084,136.39,136.31,6.6041]
[1767635745634,6.601,136.38,136.3,86.66]
[1767635745929,6.93253084,136.38,136.29,86.66]
[1767635746127,0.33153084,136.38,136.29,6.605]
[1767635746322,6.6014,136.37,136.29,93.265]
[1767635746526,0.33153084,136.38,136.29,93.265]
[1767635746729,0.33153084,136.38,136.27,6.69183324]
[1767635746934,6.93243084,136.38,136.27,86.66]
[1767635747138,0.33153084,136.38,136.28,102.7548]
[1767635747434,0.33153084,136.41,136.32,6.6036]
[1767635748526,0.33153084,136.45,136.32,102.7188]
[1767635748731,0.33153084,136.45,136.34,102.7054]
[1767635748937,0.33153084,136.45,136.33,109.40913324]
[1767635749136,102.6155,136.47,136.35,6.6021]
[1767635749137,6.5981,136.44,136.35,6.6021]
[1767635749334,0.33153084,136.44,136.33,86.66]
[1767635749837,6.5986,136.43,136.33,93.2631]
[1767635750034,0.33153084,136.44,136.33,93.2631]
[1767635750237,0.33153084,136.44,136.35,6.6021]
[1767635750532,123.09796521,136.52,136.36,102.6941]
[1767635750533,0.33153084,136.47,136.36,102.6941]
[1767635750724,0.33153084,136.47,136.33,116.73719845]
[1767635750929,0.33153084,136.46,136.34,86.66]
[1767635751135,0.33153084,136.45,136.31,109.42173324]
[1767635751440,0.33153084,136.42,136.33,6.6029]
[1767635752432,0.33153084,136.42,136.34,6.6023]
[1767635752842,0.33153084,136.42,136.32,86.66]
[1767635753336,0.33153084,136.42,136.33,6.6029]
[1767635754240,6.93063084,136.42,136.32,86.66]
[1767635754630,0.33153084,136.42,136.33,6.6031]
[1767635754941,0.33153084,136.42,136.32,86.66]
[1767635755342,93.59678261,136.45,136.35,6.6018]
[1767635755542,93.59678261,136.45,136.34,102.7057]
[1767635755736,86.99908261,136.45,136.34,102.7057]
[1767635756241,86.99908261,136.45,136.35,102.7012]
[1767635756445,86.99908261,136.45,136.38,6.6007]
[1767635756742,0.33908261,136.48,136.37,189.343]
[1767635757041,0.33908261,136.48,136.38,86.66]
[1767635757242,0.33908261,136.47,136.34,102.7057]
[1767635757435,6.5971,136.46,136.36,6.6015]
[1767635757637,0.33908261,136.47,136.36,6.6015]
[1767635757638,0.33908261,136.45,136.36,6.6015]
[1767635757834,0.33908261,136.44,136.32,102.7251]
[1767635758038,0.33908261,136.44,136.33,86.64]
[1767635758744,0.33908261,136.43,136.32,86.64]
[1767635759042,6.93908261,136.4,136.31,6.6039]
[1767635759240,0.33908261,136.39,136.31,6.6039]
[1767635759443,0.33908261,136.39,136.3,86.64]
[1767635759744,102.6535,136.42,136.3,86.64]
[1767635759745,86.97908261,136.42,136.32,6.6034]
[1767635760043,0.33908261,136.41,136.3,86.64]
[1767635760439,0.33908261,136.39,136.29,6.6049]
[1767635761244,0.33270921,136.37,136.27,99.93773324]
[1767635761441,102.6653,136.4,136.27,99.93773324]
[1767635761442,0.33270921,136.4,136.28,102.7536]
[1767635761748,0.33270921,136.4,136.28,109.44543324]
[1767635761941,0.33270921,136.39,136.27,196.08763324]
[1767635763340,0.33270921,136.39,136.29,6.6049]
[1767635763546,0.33270921,136.39,136.29,102.7459]
[1767635764240,0.33270921,136.39,136.3,6.6044]
[1767635765547,93.239,136.42,136.32,6.6036]
[1767635765745,0.33270921,136.44,136.32,86.66]
[1767635766252,0.33270921,136.44,136.33,102.7161]
[1767635766447,0.33270921,136.44,136.34,102.71]
[1767635766835,0.33270921,136.44,136.37,6.6011]
[1767635767339,0.33270921,136.44,136.35,6.69183324]
[1767635767544,0.33270921,136.44,136.34,93.35183324]
[1767635767850,86.66,136.46,136.35,109.39423324]
[1767635767851,86.99270921,136.46,136.35,109.39423324]
[1767635768650,86.99270921,136.46,136.35,196.05423324]
[1767635768849,0.33270921,136.44,136.35,13.29383324]
[1767635769045,0.33270921,136.44,136.35,6.602]
[1767635769548,0.33270921,136.43,136.35,6.602]
[1767635769849,0.33270921,136.43,136.34,6.69183324]
[1767635770152,0.33270921,136.43,136.35,6.6021]
[1767635770644,0.33270921,136.43,136.32,6.69183324]
[1767635771046,6.93230921,136.41,136.33,6.6029]
[1767635771650,0.33270921,136.4,136.31,109.42273324]
[1767635771856,86.97270921,136.45,136.34,102.7072]
[1767635772151,86.97270921,136.45,136.34,109.39903324]
[1767635772446,0.33270921,136.44,136.34,6.69183324]
[1767635772647,0.33270921,136.44,136.32,109.41283324]
[1767635773152,0.33270921,136.44,136.33,6.69183324]
[1767635773350,0.33270921,136.41,136.32,6.69183324]
[1767635773754,0.33270921,136.41,136.29,111.76471845]
[1767635773953,0.33270921,136.41,136.31,6.72535059]
[1767635774153,6.93310921,136.39,136.3,13.32965059]
[1767635774348,0.33270921,136.39,136.31,6.72535059]
[1767635774552,0.33270921,136.39,136.3,6.72535059]
[1767635775660,6.93320921,136.39,136.31,6.6041]
[1767635777653,6.6009,136.38,136.31,6.6041]
[1767635777953,0.33270921,136.42,136.32,6.6036]